fUST/lending_fUST_20240512
["ID","MTS","AMOUNT","RATE_DAILY","PERIOD"]
[326848521,1715509888226,-622.05,0.00064657,120]
[326848522,1715509888235,-500.0,0.00064657,120]
[326848523,1715509888244,-500.0,0.00064657,120]
[326848524,1715509888253,-500.0,0.00064657,120]
[326848525,1715509888262,-500.0,0.00064657,120]
[326848526,1715509888273,-500.0,0.00064657,120]
[326848527,1715509888284,-1188.88,0.00064657,120]
[326848528,1715509888293,-500.0,0.00064657,120]
[326848529,1715509888302,-664.65,0.00064657,120]
[326848530,1715509888311,-500.0,0.00064657,120]
[326848531,1715509888320,-500.0,0.00064657,120]
[326848532,1715509888329,-500.0,0.00064657,120]
[326848533,1715509888338,-706.45,0.00064657,120]
[326848534,1715509888347,-589.94,0.00064657,120]
[326848535,1715509888356,-500.0,0.00064657,120]
[326848536,1715509888365,-500.0,0.00064657,120]
[326848537,1715509888374,-718.87,0.00064657,120]
[326848538,1715509888383,-668.81,0.00064657,120]
[326848539,1715509888395,-1198.11,0.00064657,120]
[326848540,1715509888404,-500.0,0.00064657,120]
[326848541,1715509888413,-859.74,0.00064657,120]
[326848542,1715509888422,-500.0,0.00064657,120]
[326848543,1715509888431,-1019.78,0.00064657,120]
[326848544,1715509888440,-500.0,0.00064657,120]
[326848545,1715509888449,-500.0,0.00064657,120]
[326848546,1715509888458,-1222.61,0.00064657,120]
[326848547,1715509888468,-1076.09,0.00064657,4]
[326848548,1715509888477,-500.0,0.00064657,120]
[326848549,1715509888486,-500.0,0.00064657,120]
[326848550,1715509888495,-777.18,0.00064657,120]
[326848551,1715509888504,-623.85,0.00064657,120]
[326848552,1715509888514,-879.42,0.00064657,120]
[326848553,1715509888523,-300.0,0.00064657,7]
[326848554,1715509888533,-500.0,0.00064657,120]
[326848555,1715509888542,-500.0,0.00064657,120]
[326848556,1715509888551,-500.0,0.00064657,120]
[326848557,1715509888560,-1022.56,0.00064657,120]
[326848558,1715509888570,-500.0,0.00064657,120]
[326848559,1715509888579,-500.0,0.00064657,120]
[326848560,1715509888588,-1415.7,0.00064657,120]
[326848561,1715509888598,-676.96,0.00064657,120]
[326848562,1715509888607,-702.94,0.00064657,120]
[326848563,1715509888616,-1146.59,0.00064657,120]
[326848564,1715509888626,-846.45,0.00064657,120]
[326848565,1715509888635,-500.0,0.00064657,120]
[326848566,1715509888646,-500.0,0.00064657,120]
[326848567,1715509888777,-506.08,0.00064657,120]
[326848568,1715509888788,-694.21,0.00064657,120]
[326848569,1715509888798,-534.57,0.00064657,120]
[326848570,1715509888807,-628.13,0.00064657,120]
[326848571,1715509888816,-500.0,0.00064657,120]
[326848572,1715509888828,-563.98,0.00064657,120]
[326848573,1715509888837,-500.0,0.00064657,120]
[326848574,1715509888847,-500.0,0.00064657,120]
[326848575,1715509888856,-500.0,0.00064657,120]
[326848576,1715509888866,-1333.29,0.00064657,120]
[326848577,1715509888875,-2080.97,0.00064657,120]
[326848578,1715509888884,-500.0,0.00064657,120]
[326848579,1715509888897,-697.5,0.00064657,120]
[326848580,1715509888906,-500.0,0.00064657,120]
[326848581,1715509888916,-1146.84,0.00064657,120]
[326848582,1715509888926,-500.0,0.00064657,120]
[326848583,1715509888936,-500.0,0.00064657,120]
[326848584,1715509888945,-500.0,0.00064657,120]
[326848585,1715509888955,-500.0,0.00064657,120]
[326848586,1715509888964,-1062.31,0.00064657,120]
[326848587,1715509888974,-887.25,0.00064657,120]
[326848588,1715509888983,-500.0,0.00064657,120]
[326848589,1715509888992,-884.99,0.00064657,120]
[326848590,1715509889002,-1945.84,0.00064657,120]
[326848591,1715509889011,-1101.29,0.00064657,120]
[326848592,1715509889020,-683.11,0.00064657,120]
[326848593,1715509889030,-500.0,0.00064657,120]
[326848594,1715509889039,-500.0,0.00064657,120]
[326848595,1715509889050,-500.0,0.00064657,120]
[326848596,1715509889059,-500.0,0.00064657,120]
[326848597,1715509889069,-634.75,0.00064657,120]
[326848598,1715509889078,-500.0,0.00064657,120]
[326848599,1715509889088,-1202.07,0.00064657,120]
[326848600,1715509889097,-652.77,0.00064657,120]
[326848601,1715509889106,-665.8,0.00064657,120]
[326848602,1715509889115,-2405.12,0.00064657,120]
[326848603,1715509889124,-1296.67,0.00064657,120]
[326848604,1715509889134,-500.0,0.00064657,120]
[326848605,1715509889145,-500.0,0.00064657,120]
[326848606,1715509889154,-515.15,0.00064657,120]
[326848607,1715509889163,-1711.77,0.00064657,120]
[326848608,1715509889172,-500.0,0.00064657,120]
[326848609,1715509889181,-634.68,0.00064657,120]
[326848610,1715509889193,-674.93,0.00064657,120]
[326848611,1715509889208,-500.0,0.00064657,120]
[326848612,1715509889218,-669.18,0.00064657,120]
[326848613,1715509889227,-662.7,0.00064657,120]
[326848614,1715509889237,-672.84,0.00064657,120]
[326848615,1715509889246,-500.0,0.00064657,120]
[326848616,1715509889256,-500.0,0.00064657,120]
[326848617,1715509889265,-500.0,0.00064657,120]
[326848618,1715509889274,-197.411004,0.00064657,120]
[326848619,1715509889283,-1082.38,0.00064657,120]
[326848620,1715509889293,-500.0,0.00064657,120]
[326848621,1715509889302,-2510.37,0.00064657,120]
[326848622,1715509889311,-4167.16,0.00064657,120]
[326848623,1715509889320,-1216.89,0.00064657,7]
[326848624,1715509889329,-568.37,0.00064657,120]
[326848625,1715509889338,-500.0,0.00064657,120]
[326848626,1715509889348,-500.0,0.00064657,120]
[326848627,1715509889357,-634.17,0.00064657,120]
[326848628,1715509889366,-711.19,0.00064657,120]
[326848629,1715509889375,-645.64,0.00064657,120]
[326848630,1715509889384,-634.59,0.00064657,120]
[326848631,1715509889396,-522.61,0.00064657,120]
[326848632,1715509889405,-1199.73,0.00064657,120]
[326848633,1715509889415,-852.85,0.00064657,120]
[326848634,1715509889424,-500.0,0.00064657,120]
[326848635,1715509889433,-625.2,0.00064657,120]
[326848636,1715509889442,-500.0,0.00064657,120]
[326848637,1715509889451,-500.0,0.00064657,120]
[326848638,1715509889460,-728.74,0.00064657,120]
[326848639,1715509889470,-501.04,0.00064657,120]
[326848640,1715509889479,-588.33,0.00064657,120]
[326848641,1715509889488,-500.0,0.00064657,120]
[326848642,1715509889497,-500.0,0.00064657,120]
[326848643,1715509889506,-1576.44,0.00064657,120]
[326848644,1715509889515,-500.0,0.00064657,120]
[326848645,1715509889525,-500.0,0.00064657,120]
[326848646,1715509889534,-500.0,0.00064657,120]
[326848647,1715509889543,-500.0,0.00064657,120]
[326848648,1715509889552,-642.78,0.00064657,120]
[326848649,1715509889562,-500.0,0.00064657,120]
[326848650,1715509889571,-1474.83,0.00064657,120]
[326848651,1715509889580,-500.0,0.00064657,120]
[326848652,1715509889589,-500.0,0.00064657,120]
[326848653,1715509889598,-500.0,0.00064657,120]
[326848654,1715509889607,-1138.94,0.00064657,120]
[326848655,1715509889618,-500.0,0.00064657,120]
[326848656,1715509889627,-2052.53,0.00064657,120]
[326848657,1715509889636,-3343.91,0.00064657,120]
[326848658,1715509889646,-500.0,0.00064657,120]
[326848659,1715509889655,-1280.34,0.00064657,120]
[326848660,1715509889664,-589.15,0.00064657,120]
[326848661,1715509889673,-990.89,0.00064657,120]
[326848662,1715509889681,-1022.63,0.00064657,120]
[326848663,1715509889690,-1377.96,0.00064657,120]
[326848664,1715509889700,-500.0,0.00064657,120]
[326848665,1715509889709,-849.72,0.00064657,120]
[326848666,1715509889717,-500.0,0.00064657,120]
[326848667,1715509889727,-2169.41,0.00064657,120]
[326848668,1715509889735,-658.6,0.00064657,120]
[326848669,1715509889744,-926.02,0.00064657,120]
[326848670,1715509889754,-2031.16,0.00064657,120]
[326848671,1715509889763,-500.0,0.00064657,120]
[326848672,1715509889772,-1300.61,0.00064657,120]
[326848673,1715509889780,-4158.51,0.00064657,120]
[326848674,1715509889790,-500.0,0.00064657,120]
[326848675,1715509889798,-1707.07,0.00064657,120]
[326848676,1715509889808,-747.04,0.00064657,120]
[326848677,1715509889817,-500.0,0.00064657,120]
[326848678,1715509889826,-610.04,0.00064657,120]
[326848679,1715509889835,-616.93,0.00064657,120]
[326848680,1715509889844,-555.14,0.00064657,120]
[326848681,1715509889853,-500.0,0.00064657,120]
[326848682,1715509889862,-500.0,0.00064657,120]
[326848683,1715509889872,-663.17,0.00064657,60]
[326848684,1715509889880,-1965.65,0.00064657,120]
[326848685,1715509889890,-550.35517202,0.00064657,120]
[326848686,1715509889899,-500.0,0.00064657,120]
[326848687,1715509889908,-1720.11,0.00064657,120]
[326848688,1715509889917,-500.0,0.00064657,120]
[326848689,1715509889926,-1258.86,0.00064657,7]
[326848690,1715509889935,-500.0,0.00064657,120]
[326848691,1715509889944,-531.16,0.00064657,120]
[326848692,1715509889953,-500.0,0.00064657,120]
[326848693,1715509889962,-1275.8,0.00064657,120]
[326848694,1715509889971,-1330.34,0.00064657,120]
[326848695,1715509889980,-1477.44,0.00064657,120]
[326848696,1715509889989,-500.0,0.00064657,120]
[326848697,1715509889998,-500.0,0.00064657,120]
[326848698,1715509890008,-500.0,0.00064657,120]
[326848699,1715509890017,-500.0,0.00064657,120]
[326848700,1715509890026,-1415.41,0.00064657,120]
[326848701,1715509890034,-790.3,0.00064657,120]
[326848702,1715509890043,-500.0,0.00064657,120]
[326848703,1715509890052,-1299.65,0.00064657,120]
[326848704,1715509890061,-500.0,0.00064657,120]
[326848705,1715509890070,-631.96,0.00064657,120]
[326848706,1715509890079,-2939.68,0.00064657,21]
[326848707,1715509890088,-775.43,0.00064657,120]
[326848708,1715509890097,-609.98334131,0.00064657,120]
[326848709,1715509890106,-500.0,0.00064657,120]
[326848710,1715509890115,-500.0,0.00064657,120]
[326848711,1715509890123,-4428.92,0.00064657,120]
[326848712,1715509890132,-974.56,0.00064657,120]
[326848713,1715509890142,-500.0,0.00064657,120]
[326848714,1715509890150,-1052.97,0.00064657,120]
[326848715,1715509890160,-3584.43,0.00064657,120]
[326848716,1715509890169,-721.17,0.00064657,120]
[326848717,1715509890178,-661.04,0.00064657,120]
[326848718,1715509890187,-625.85,0.00064657,120]
[326848719,1715509890199,-980.18,0.00064657,120]
[326848720,1715509890209,-614.26,0.00064657,120]
[326848721,1715509890217,-500.0,0.00064657,120]
[326848722,1715509890227,-1131.83,0.00064657,120]
[326848723,1715509890238,-583.64,0.00064657,120]
[326848724,1715509890247,-500.0,0.00064657,120]
[326848725,1715509890256,-513.88,0.00064657,120]
[326848726,1715509890265,-370.44095203,0.00064657,120]
[326848727,1715509890274,-500.0,0.00064657,120]
[326848728,1715509890286,-2410.3,0.00064657,120]
[326848729,1715509890296,-5121.64,0.00064657,120]
[326848730,1715509890305,-1457.89,0.00064657,120]
[326848731,1715509890314,-719.29,0.00064657,120]
[326848732,1715509890323,-1228.7,0.00064657,120]
[326848733,1715509890332,-500.0,0.00064657,120]
[326848734,1715509890341,-500.0,0.00064657,120]
[326848735,1715509890350,-1264.94,0.00064657,120]
[326848736,1715509890358,-1513.78,0.00064657,120]
[326848737,1715509890367,-673.28,0.00064657,120]
[326848738,1715509890377,-694.76,0.00064657,120]
[326848739,1715509890386,-1272.39,0.00064657,120]
[326848740,1715509890397,-2272.31,0.00064657,120]
[326848741,1715509890405,-500.0,0.00064657,120]
[326848742,1715509890414,-11483.2,0.00064657,120]
[326848743,1715509890423,-500.0,0.00064657,7]
[326848744,1715509890432,-606.15,0.00064657,120]
[326848745,1715509890441,-500.0,0.00064657,120]
[326848746,1715509890450,-765.03,0.00064657,120]
[326848747,1715509890459,-500.0,0.00064657,120]
[326848748,1715509890469,-910.45,0.00064657,120]
[326848749,1715509890478,-1594.77,0.00064657,120]
[326848750,1715509890488,-749.73,0.00064657,120]
[326848751,1715509890497,-1094.1,0.00064657,120]
[326848752,1715509890506,-760.68,0.00064657,120]
[326848753,1715509890515,-1439.15,0.00064657,120]
[326848754,1715509890524,-728.36,0.00064657,120]
[326848755,1715509890533,-554.07,0.00064657,120]
[326848756,1715509890542,-851.93,0.00064657,120]
[326848757,1715509890551,-21061.66,0.00064657,120]
[326848758,1715509890560,-1275.67,0.00064657,120]
[326848759,1715509890569,-697.89,0.00064657,120]
[326848760,1715509890578,-1584.34,0.00064657,120]
[326848761,1715509890588,-1080.54,0.00064657,120]
[326848762,1715509890597,-500.0,0.00064657,120]
[326848763,1715509890606,-2498.53867206,0.00065,120]
[326848764,1715509890614,-151.0,0.00065041,120]
[326848765,1715509890623,-285.164937,0.0006535,2]
[326848766,1715509890633,-500.0,0.000655,120]
[326848767,1715509890643,-253.12987492,0.00065527,17]
[326848768,1715509890651,-500.0,0.00065753,120]
[326848769,1715509890661,-500.0,0.00065753,120]
[326848770,1715509890670,-792.18,0.00065753,120]
[326848771,1715509890679,-700.0,0.00065753,120]
[326848772,1715509890688,-500.0,0.00065753,120]
[326848773,1715509890697,-490.64649285,0.00065753,120]
[326848774,1715509890706,-500.0,0.00065753,120]
[326848775,1715509890715,-500.0,0.00065753,120]
[326848776,1715509890724,-500.0,0.00065753,120]
[326848777,1715509890734,-574.50390349,0.00065753,120]
[326848778,1715509890744,-500.0,0.00065753,120]
[326848779,1715509890753,-687.88,0.00065753,120]
[326848780,1715509890762,-1184.42,0.00065753,120]
[326848781,1715509890771,-622.05,0.00065753,120]
[326848782,1715509890780,-500.0,0.00065753,120]
[326848783,1715509890789,-500.0,0.00065753,120]
[326848784,1715509890798,-500.0,0.00065753,120]
[326848785,1715509890807,-587.07678689,0.00065753,120]
[326848786,1715509890815,-500.0,0.00065753,120]
[326848787,1715509890825,-1188.88,0.00065753,120]
[326848788,1715509890834,-500.0,0.00065753,120]
[326848789,1715509890843,-664.65,0.00065753,120]
[326848790,1715509890852,-510.89252543,0.00065753,120]
[326848791,1715509890861,-500.0,0.00065753,120]
[326848792,1715509890871,-500.0,0.00065753,120]
[326848793,1715509890880,-706.45,0.00065753,120]
[326848794,1715509890889,-589.94,0.00065753,120]
[326848795,1715509890899,-500.0,0.00065753,120]
[326848796,1715509890908,-500.0,0.00065753,120]
[326848797,1715509890917,-718.87,0.00065753,120]
[326848798,1715509890927,-668.81,0.00065753,120]
[326848799,1715509890936,-1198.11,0.00065753,120]
[326848800,1715509890945,-500.0,0.00065753,120]
[326848801,1715509890955,-859.74,0.00065753,120]
[326848802,1715509890964,-500.0,0.00065753,120]
[326848803,1715509890973,-1019.78,0.00065753,120]
[326848804,1715509890982,-500.0,0.00065753,120]
[326848805,1715509890991,-509.05263043,0.00065753,120]
[326848806,1715509891001,-1222.61,0.00065753,120]
[326848807,1715509891010,-1076.09,0.00065753,4]
[326848808,1715509891020,-500.0,0.00065753,120]
[326848809,1715509891030,-500.0,0.00065753,120]
[326848810,1715509891039,-777.18,0.00065753,120]
[326848811,1715509891049,-623.85,0.00065753,120]
[326848812,1715509891058,-879.42,0.00065753,120]
[326848813,1715509891067,-300.0,0.00065753,7]
[326848814,1715509891078,-500.0,0.00065753,120]
[326848815,1715509891087,-237.13989445,0.00065753,120]
[326848816,1715509891097,-500.0,0.00065753,120]
[326848817,1715509891106,-1022.56,0.00065753,120]
[326848818,1715509891115,-500.0,0.00065753,120]
[326848819,1715509891126,-1415.7,0.00065753,120]
[326848820,1715509891135,-702.94,0.00065753,120]
[326848821,1715509891147,-676.96,0.00065753,120]
[326848822,1715509891156,-1146.59,0.00065753,120]
[326848823,1715509891165,-846.45,0.00065753,120]
[326848824,1715509891174,-500.0,0.00065753,120]
[326848825,1715509891183,-500.0,0.00065753,120]
[326848826,1715509891193,-506.08,0.00065753,120]
[326848827,1715509891205,-694.21,0.00065753,120]
[326848828,1715509891214,-534.57,0.00065753,120]
[326848829,1715509891223,-628.13,0.00065753,120]
[326848830,1715509891232,-500.0,0.00065753,120]
[326848831,1715509891241,-563.98,0.00065753,120]
[326848832,1715509891250,-500.0,0.00065753,120]
[326848833,1715509891259,-500.0,0.00065753,120]
[326848834,1715509891269,-500.0,0.00065753,120]
[326848835,1715509891278,-1333.29,0.00065753,120]
[326848836,1715509891287,-2080.97,0.00065753,120]
[326848837,1715509891296,-500.0,0.00065753,120]
[326848838,1715509891305,-697.5,0.00065753,120]
[326848839,1715509891314,-500.0,0.00065753,120]
[326848840,1715509891323,-1146.84,0.00065753,120]
[326848841,1715509891333,-500.0,0.00065753,120]
[326848842,1715509891342,-500.0,0.00065753,120]
[326848843,1715509891351,-500.0,0.00065753,120]
[326848844,1715509891360,-500.0,0.00065753,120]
[326848845,1715509891369,-1062.31,0.00065753,120]
[326848846,1715509891378,-887.25,0.00065753,120]
[326848847,1715509891505,-500.0,0.00065753,120]
[326848848,1715509891515,-884.99,0.00065753,120]
[326848849,1715509891524,-1945.84,0.00065753,120]
[326848850,1715509891534,-1101.29,0.00065753,120]
[326848851,1715509891543,-683.11,0.00065753,120]
[326848852,1715509891553,-500.0,0.00065753,120]
[326848853,1715509891562,-500.0,0.00065753,120]
[326848854,1715509891572,-500.0,0.00065753,120]
[326848855,1715509891581,-439.19963062,0.00065753,120]
[326848856,1715509891591,-634.75,0.00065753,120]
[326848857,1715509891600,-500.0,0.00065753,120]
[326848858,1715509891610,-1202.07,0.00065753,120]
[326848859,1715509891619,-652.77,0.00065753,120]
[326848860,1715509891629,-665.8,0.00065753,120]
[326848861,1715509891640,-2405.12,0.00065753,120]
[326848862,1715509891652,-1296.67,0.00065753,120]
[326848863,1715509891661,-500.0,0.00065753,120]
[326848864,1715509891670,-500.0,0.00065753,120]
[326848865,1715509891679,-515.15,0.00065753,120]
[326848866,1715509891689,-1711.77,0.00065753,120]
[326848867,1715509891698,-500.0,0.00065753,120]
[326848868,1715509891708,-634.68,0.00065753,120]
[326848869,1715509891717,-674.93,0.00065753,120]
[326848870,1715509891726,-500.0,0.00065753,120]
[326848871,1715509891735,-669.18,0.00065753,120]
[326848872,1715509891744,-662.7,0.00065753,120]
[326848873,1715509891754,-672.84,0.00065753,120]
[326848874,1715509891763,-500.0,0.00065753,120]
[326848875,1715509891773,-500.0,0.00065753,120]
[326848876,1715509891782,-371.35820367,0.00065753,120]
[326848877,1715509891792,-1082.38,0.00065753,120]
[326848878,1715509891801,-500.0,0.00065753,120]
[326848879,1715509891811,-2510.37,0.00065753,120]
[326848880,1715509891820,-4167.16,0.00065753,120]
[326848881,1715509891830,-1216.89,0.00065753,7]
[326848882,1715509891839,-568.37,0.00065753,120]
[326848883,1715509891849,-500.0,0.00065753,120]
[326848884,1715509891858,-500.0,0.00065753,120]
[326848885,1715509891868,-634.17,0.00065753,120]
[326848886,1715509891877,-711.19,0.00065753,120]
[326848887,1715509891887,-645.64,0.00065753,120]
[326848888,1715509891898,-634.59,0.00065753,120]
[326848889,1715509891907,-522.61,0.00065753,120]
[326848890,1715509891917,-1199.73,0.00065753,120]
[326848891,1715509891926,-852.85,0.00065753,120]
[326848892,1715509891935,-500.0,0.00065753,120]
[326848893,1715509891945,-625.2,0.00065753,120]
[326848894,1715509891954,-500.0,0.00065753,120]
[326848895,1715509891963,-728.74,0.00065753,120]
[326848896,1715509891973,-500.0,0.00065753,120]
[326848897,1715509891982,-501.04,0.00065753,120]
[326848898,1715509891992,-588.33,0.00065753,120]
[326848899,1715509892002,-500.0,0.00065753,120]
[326848900,1715509892011,-531.25196414,0.00065753,120]
[326848901,1715509892020,-1576.44,0.00065753,120]
[326848902,1715509892030,-500.0,0.00065753,120]
[326848903,1715509892039,-538.1630524,0.00065753,120]
[326848904,1715509892048,-500.0,0.00065753,120]
[326848905,1715509892058,-644.09466992,0.00065753,120]
[326848906,1715509892067,-642.78,0.00065753,120]
[326848907,1715509892076,-500.0,0.00065753,120]
[326848908,1715509892086,-1474.83,0.00065753,120]
[326848909,1715509892095,-500.0,0.00065753,120]
[326848910,1715509892105,-500.0,0.00065753,120]
[326848911,1715509892115,-500.0,0.00065753,120]
[326848912,1715509892124,-1138.94,0.00065753,120]
[326848913,1715509892133,-500.0,0.00065753,120]
[326848914,1715509892144,-2052.53,0.00065753,120]
[326848915,1715509892153,-3343.91,0.00065753,120]
[326848916,1715509892162,-500.0,0.00065753,120]
[326848917,1715509892171,-1280.34,0.00065753,120]
[326848918,1715509892179,-589.15,0.00065753,120]
[326848919,1715509892189,-990.89,0.00065753,120]
[326848920,1715509892201,-1022.63,0.00065753,120]
[326848921,1715509892210,-1377.96,0.00065753,120]
[326848922,1715509892220,-500.0,0.00065753,120]
[326848923,1715509892229,-849.72,0.00065753,120]
[326848924,1715509892238,-500.0,0.00065753,120]
[326848925,1715509892247,-2169.41,0.00065753,120]
[326848926,1715509892256,-658.6,0.00065753,120]
[326848927,1715509892266,-926.02,0.00065753,120]
[326848928,1715509892276,-2031.16,0.00065753,120]
[326848929,1715509892287,-500.0,0.00065753,120]
[326848930,1715509892296,-1300.61,0.00065753,120]
[326848931,1715509892306,-4158.51,0.00065753,120]
[326848932,1715509892315,-500.0,0.00065753,120]
[326848933,1715509892324,-1707.07,0.00065753,120]
[326848934,1715509892334,-747.04,0.00065753,120]
[326848935,1715509892342,-500.0,0.00065753,120]
[326848936,1715509892352,-610.04,0.00065753,120]
[326848937,1715509892361,-616.93,0.00065753,120]
[326848938,1715509892370,-555.14,0.00065753,120]
[326848939,1715509892380,-255.14560852,0.00065753,120]
[326848940,1715509892389,-500.0,0.00065753,120]
[326848941,1715509892403,-663.17,0.00065753,60]
[326848942,1715509892412,-1965.65,0.00065753,120]
[326848943,1715509892421,-500.0,0.00065753,120]
[326848944,1715509892430,-1720.11,0.00065753,120]
[326848945,1715509892438,-500.0,0.00065753,120]
[326848946,1715509892447,-1258.86,0.00065753,7]
[326848947,1715509892456,-364.41867808,0.00065753,120]
[326848948,1715509892464,-531.16,0.00065753,120]
[326848949,1715509892473,-500.0,0.00065753,120]
[326848950,1715509892482,-1275.8,0.00065753,120]
[326848951,1715509892491,-1330.34,0.00065753,120]
[326848952,1715509892500,-1477.44,0.00065753,120]
[326848953,1715509892509,-500.0,0.00065753,120]
[326848954,1715509892518,-500.0,0.00065753,120]
[326848955,1715509892527,-286.8875956,0.00065753,120]
[326848956,1715509892536,-500.0,0.00065753,120]
[326848957,1715509892545,-1415.41,0.00065753,120]
[326848958,1715509892554,-790.3,0.00065753,120]
[326848959,1715509892565,-500.0,0.00065753,120]
[326848960,1715509892574,-1299.65,0.00065753,120]
[326848961,1715509892584,-315.57910727,0.00065753,120]
[326848962,1715509892594,-631.96,0.00065753,120]
[326848963,1715509892603,-775.43,0.00065753,120]
[326848964,1715509892614,-500.0,0.00065753,120]
[326848965,1715509892624,-183.40405669,0.00065753,120]
[326848966,1715509892633,-4428.92,0.00065753,120]
[326848967,1715509892645,-974.56,0.00065753,120]
[326848968,1715509892654,-500.0,0.00065753,120]
[326848969,1715509892662,-1052.97,0.00065753,120]
[326848970,1715509892671,-3584.43,0.00065753,120]
[326848971,1715509892679,-721.17,0.00065753,120]
[326848972,1715509892688,-661.04,0.00065753,120]
[326848973,1715509892696,-625.85,0.00065753,120]
[326848974,1715509892705,-980.18,0.00065753,120]
[326848975,1715509892714,-614.26,0.00065753,120]
[326848976,1715509892724,-556.52438242,0.00065753,120]
[326848977,1715509892733,-1131.83,0.00065753,120]
[326848978,1715509892742,-508.28114523,0.00065753,120]
[326848979,1715509892751,-583.64,0.00065753,120]
[326848980,1715509892760,-513.88,0.00065753,120]
[326848981,1715509892770,-500.0,0.00065753,120]
[326848982,1715509892779,-2410.3,0.00065753,120]
[326848983,1715509892787,-5121.64,0.00065753,120]
[326848984,1715509892797,-1457.89,0.00065753,120]
[326848985,1715509892806,-719.29,0.00065753,120]
[326848986,1715509892815,-1228.7,0.00065753,120]
[326848987,1715509892823,-500.0,0.00065753,120]
[326848988,1715509892832,-500.0,0.00065753,120]
[326848989,1715509892841,-1264.94,0.00065753,120]
[326848990,1715509892850,-1513.78,0.00065753,120]
[326848991,1715509892860,-673.28,0.00065753,120]
[326848992,1715509892869,-694.76,0.00065753,120]
[326848993,1715509892878,-1272.39,0.00065753,120]
[326848994,1715509892887,-2272.31,0.00065753,120]
[326848995,1715509892899,-500.0,0.00065753,120]
[326848996,1715509892909,-11483.2,0.00065753,120]
[326848997,1715509892918,-500.0,0.00065753,7]
[326848998,1715509892927,-606.15,0.00065753,120]
[326848999,1715509892936,-500.0,0.00065753,120]
[326849000,1715509892945,-765.03,0.00065753,120]
[326849001,1715509892954,-500.0,0.00065753,120]
[326849002,1715509892963,-910.45,0.00065753,120]
[326849003,1715509892972,-1594.77,0.00065753,120]
[326849004,1715509892981,-749.73,0.00065753,120]
[326849005,1715509892990,-1094.1,0.00065753,120]
[326849006,1715509892999,-760.68,0.00065753,120]
[326849007,1715509893009,-1439.15,0.00065753,120]
[326849008,1715509893018,-728.36,0.00065753,120]
[326849009,1715509893027,-554.07,0.00065753,120]
[326849010,1715509893036,-851.93,0.00065753,120]
[326849011,1715509893046,-21061.66,0.00065753,120]
[326849012,1715509893055,-1275.67,0.00065753,120]
[326849013,1715509893065,-697.89,0.00065753,120]
[326849014,1715509893074,-1584.34,0.00065753,120]
[326849015,1715509893083,-1080.54,0.00065753,120]
[326849016,1715509893092,-500.0,0.00065753,120]
[326849017,1715509893101,-151.0,0.00066219,120]
[326849018,1715509893111,-557.0,0.00066602,120]
[326849019,1715509893119,-500.0,0.00066849,120]
[326849020,1715509893128,-500.0,0.00066849,120]